Workbook

Sheet Summary of Funding (hidden)
A1: Date Issued: 27th February 2026 | H1: Last amended: 25th February 2026
A2: COVENTRY CITY COUNCIL
A3: 2026/27 Funding Allocations for Schools | N3: 2
A4: INDICATIVE Summary of Funding
A6: =_xlfn.XLOOKUP("P"&$N$3,[5]Formula!$A:$A,[5]Formula!$C:$C) -> Aldermoor Farm Primary School | N6: Checks
A9: =IF((N32+N33)=0,"","***ERROR - CALCULATED ADJUSTMENT DOES NOT EQUAL ACTUAL ***") -> 
A10: Main Funding Elements
A12: School Budget Share 2026/27 | F12: ='Budget Share Statement'!K58 -> 3655362.443 | N12: =F12-'Budget Share Statement'!K58 -> 0
A14: Indicative Early Years Funding 2026/27* (to be updated) | F14: ='EYSFF statement'!K30 -> 165098.4771 | N14: =F14-'EYSFF statement'!K30 -> 0
H16: =SUM(F12,F14) -> 3820460.92 | N16: =N12+N14 -> 0
A18: Other 2026/27 Funding Elements
A20: Indicative Pupil Premium Grant † (excludes LAC & EYPP elements) | F20: =_xlfn.XLOOKUP("P"&$N$3,[6]Allocations!$A$1:$A$65536,[6]Allocations!$U$1:$U$65536) -> 322400
A22: Indicative High Needs Top-up Funding § | F22: =_xlfn.XLOOKUP("P"&$N$3,'[7]HN Top-up Calculation'!$A:$A,'[7]HN Top-up Calculation'!$M:$M) -> 129386.87
A24: Class Size Funding | F24: =_xlfn.XLOOKUP(N3,'[8]Class size'!$A:$A,'[8]Class size'!$N:$N) -> 0
A26: Bulge Class Future Year Funding | F26: =_xlfn.IFNA(_xlfn.XLOOKUP("P"&$N$3,'[8]Bulge Class 3rd Year'!$R:$R,'[8]Bulge Class 3rd Year'!$T:$T),0) -> 0
A28: Disproportionate SEN | F28: =-_xlfn.XLOOKUP("P"&$N$3,[9]Sheet1!$C:$C,[9]Sheet1!$T:$T) -> 0
H30: =F20+F22+F24+F28+F26 -> 451786.87
A32: Total Revenue Resources | H32: =H16+H30 -> 4272247.79 | N32: =N12+N14+N20+N22+N24+N16 -> 0
N33: =ROUND(('Budget Share Statement'!O58+'EYSFF statement'!N30+'De-delegation'!O25+'Minimum Funding Level'!O28+'Funding Floor'!N42+'MFG Calculation'!N55),0) -> 0
A35: Notes
A36: This funding summary is intended to give you an overview of the resources allocated to the school for the financial year 2026/27.
A37: Please ensure that you read this budget share pack in conjunction with the explanatory notes which are available to download online.
A39: * Early Years funding has been estimated based on participation at the 25/26 census levels for Sum-26 & Aut-26, and the Spr-27 has been
A40: estimated based on participation at the 24/25 census levels. - please see the EYSFF statement for further detail.
A41: † Pupil Premium Funding has been updated to reflect 25/26 eligibility data using 2026/27 funding rates which will be subject to change.
A42: § Indicative High Needs Top-up Funding has been calculated based on your number of pupils on high needs bandings as at Aut-25
A43: using 2026/27 funding rates. This figure will change based on the real time movement of pupils during the 2026/27 financial year
A44: and so will not be final until March 2027.

Sheet Budget Share Statement (hidden)
A1: ='Summary of Funding'!A1 -> Date Issued: 27th February 2026 | K1: ='Summary of Funding'!H1 -> Last amended: 25th February 2026
A2: COVENTRY CITY COUNCIL
A3: ='Summary of Funding'!A3:H3 -> 2026/27 Funding Allocations for Schools | N3: ='Summary of Funding'!N3 -> 2
A4: INDICATIVE School Budget Share Statement
A6: =_xlfn.XLOOKUP("P"&$N$3,'[10]Minimum Funding Guarantee'!$A:$A,'[10]Minimum Funding Guarantee'!$C:$C) -> Aldermoor Farm Primary School | O6: Checks
A10: Factors | C10: Factor Measurement | G10: Number of Units | I10: Funding Per Unit | K10: Funding Allocated
I11: £ | K11: £
A12: Basic Entitlement
A13: Funding | C13: Pupil Number: (Oct-25 Census) | G13: =_xlfn.XLOOKUP("P"&$N$3,[5]Data!$A:$A,[5]Data!$G:$G) -> 601 | I13: =[5]Formula!$D$2 -> 4078.30528 | K13: =G13*I13 -> 2451061.473 | O13: =_xlfn.XLOOKUP("P"&$N$3,[5]Formula!$A:$A,[5]Formula!$D:$D)-K13 -> 0
K15: =K13 -> 2451061.473
A17: Deprivation Funding | C17: IDACI Band G: Pupil's IDACI < 0.20 | G17: =_xlfn.XLOOKUP("P"&$N$3,[5]Data!$A:$A,[5]Data!$V:$V) -> 79 | I17: 0 | K17: =G17*I17 -> 0
C18: IDACI Band F: 0.20 ≤ Pupil's IDACI < 0.25 | G18: =_xlfn.XLOOKUP("P"&$N$3,[5]Data!$A:$A,[5]Data!$W:$W) -> 3 | I18: =[5]Formula!$N$2 -> 240.8448 | K18: =G18*I18 -> 722.5344 | O18: =_xlfn.XLOOKUP("P"&$N$3,[5]Formula!$A:$A,[5]Formula!$N:$N)-K18 -> 0
C19: IDACI Band E: 0.25 ≤ Pupil's IDACI < 0.30 | G19: =_xlfn.XLOOKUP("P"&$N$3,[5]Data!$A:$A,[5]Data!$X:$X) -> 219 | I19: =[5]Formula!$O$2 -> 291.0208 | K19: 63733.5552 | O19: =_xlfn.XLOOKUP("P"&$N$3,[5]Formula!$A:$A,[5]Formula!$O:$O)-K19 -> 0
C20: IDACI Band D: 0.30 ≤ Pupil's IDACI < 0.35 | G20: =_xlfn.XLOOKUP("P"&$N$3,[5]Data!$A:$A,[5]Data!$Y:$Y) -> 11 | I20: =[5]Formula!$P$2 -> 456.6016 | K20: 5022.6176 | O20: =_xlfn.XLOOKUP("P"&$N$3,[5]Formula!$A:$A,[5]Formula!$P:$P)-K20 -> 0
C21: IDACI Band C: 0.35 ≤ Pupil's IDACI < 0.40 | G21: =_xlfn.XLOOKUP("P"&$N$3,[5]Data!$A:$A,[5]Data!$Z:$Z) -> 8 | I21: =[5]Formula!$Q$2 -> 501.76 | K21: 4014.08 | O21: =_xlfn.XLOOKUP("P"&$N$3,[5]Formula!$A:$A,[5]Formula!$Q:$Q)-K21 -> 0
C22: IDACI Band B: 0.40 ≤ Pupil's IDACI < 0.50 | G22: =_xlfn.XLOOKUP("P"&$N$3,[5]Data!$A:$A,[5]Data!$AA:$AA) -> 274 | I22: =[5]Formula!$R$2 -> 531.8656 | K22: 145731.1744 | O22: =_xlfn.XLOOKUP("P"&$N$3,[5]Formula!$A:$A,[5]Formula!$R:$R)-K22 -> 0
C23: IDACI Band A: 0.50 ≤ Pupil's IDACI ≤ 1.00 | G23: =_xlfn.XLOOKUP("P"&$N$3,[5]Data!$A:$A,[5]Data!$AB:$AB) -> 7 | I23: =[5]Formula!$S$2 -> 702.464 | K23: 4917.248 | O23: =_xlfn.XLOOKUP("P"&$N$3,[5]Formula!$A:$A,[5]Formula!$S:$S)-K23 -> 0
C24: Free School Meals: (Oct-25 FSM Eligibility) | G24: =_xlfn.XLOOKUP("P"&$N$3,[5]Data!$A:$A,[5]Data!$T:$T) -> 189 | I24: =[5]Formula!$E$2 -> 506.7776 | K24: 95780.9664 | O24: =_xlfn.XLOOKUP("P"&$N$3,[5]Formula!$A:$A,[5]Formula!$E:$E)-K24 -> 0
C25: Free School Meals Ever 6: (Oct-25 FSM Eligibility) | G25: =_xlfn.XLOOKUP("P"&$N$3,[5]Data!$A:$A,[5]Data!$U:$U) -> 196 | I25: =[5]Formula!$F$2 -> 1214.2592 | K25: 237994.8032 | O25: =_xlfn.XLOOKUP("P"&$N$3,[5]Formula!$A:$A,[5]Formula!$F:$F)-K25 -> 0
K27: =SUM(K17:K25) -> 557916.9792
A29: Prior Attainment Funding | C29: No.pupils not reaching expected level of development | G29: =_xlfn.XLOOKUP("P"&$N$3,[5]Data!$A:$A,[5]Data!$AC:$AC) -> 218.5681097 | I29: =[5]Formula!$G$2 -> 1204.224 | K29: =G29*I29 -> 263204.9634 | O29: =_xlfn.XLOOKUP("P"&$N$3,[5]Formula!$A:$A,[5]Formula!$G:$G)-K29 -> 0
A31: English as an Additional
A32: Language Funding | C32: No. EAL in compulsory education for 3 years or less | G32: =_xlfn.XLOOKUP("P"&$N$3,[5]Data!$A:$A,[5]Data!$AD:$AD) -> 190.8117871 | I32: =[5]Formula!$H$2 -> 612.1472 | K32: =G32*I32 -> 116804.9012 | O32: =_xlfn.XLOOKUP("P"&$N$3,[5]Formula!$A:$A,[5]Formula!$H:$H)-K32 -> 0
A34: Pupil Mobility Funding | C34: No.pupils in last 3 years who didn’t start school in Sept | G34: =_xlfn.XLOOKUP("P"&$N$3,[5]Data!$A:$A,[5]Data!$AE:$AE) -> 38.4358124 | I34: =[5]Formula!$I$2 -> 988.4672 | K34: =G34*I34 -> 37992.53986 | O34: =_xlfn.XLOOKUP("P"&$N$3,[5]Formula!$A:$A,[5]Formula!$I:$I)-K34 -> 0
A36: Lump Sum | C36: One set amount for all schools | K36: =_xlfn.XLOOKUP("P"&$N$3,[5]Formula!$A:$A,[5]Formula!$J:$J) -> 153237.504 | O36: =_xlfn.XLOOKUP("P"&$N$3,[5]Formula!$A:$A,[5]Formula!$J:$J)-K36 -> 0
A38: Split Sites Funding | C38: Lump Sum | K38: =_xlfn.XLOOKUP("P"&$N$3,[5]Formula!$A:$A,[5]Formula!$L:$L) -> 0 | O38: =_xlfn.XLOOKUP("P"&$N$3,[11]Formula!$A:$A,[11]Formula!$L:$L)-K38 -> 0
A40: Rates Funding | C40: Estimated 2026/27 rates bill | H40: =_xlfn.XLOOKUP("P"&$N$3,[5]Formula!$A:$A,[5]Formula!$K:$K) -> 73837.65 | I40: =INDEX([12]Formula!$J:$J,MATCH("P"&$N$3,[12]Formula!$A:$A,0))-E40 -> 128432.64 | K40: =H40 -> 73837.65 | O40: =_xlfn.XLOOKUP("P"&$N$3,[11]Formula!$A:$A,[11]Formula!$K:$K)-K40 -> 0
A42: Total Formula Factor Funding | K42: =K15+K27+K32+K34+K36+K38+K40+K29 -> 3654056.011 | O42: =_xlfn.XLOOKUP("P"&$N$3,[5]Formula!$A:$A,[5]Formula!$U:$U)-K42 -> 0
A44: Minimum Per Pupil (MPP) Funding Level Allocation | H44: ='Minimum Funding Level'!J28 -> 0 | O44: =_xlfn.XLOOKUP("P"&$N$3,[5]Formula!$A:$A,[5]Formula!$V:$V)-H44 -> 0
A46: Total Funding Allocated before Minimum Funding Guarantee (MFG) | K46: =K42+H44 -> 3654056.011 | O46: =_xlfn.XLOOKUP("P"&$N$3,[5]Formula!$A:$A,[5]Formula!$W:$W)-K46 -> 0
A48: MFG Protection (additional funding/top-slice) | H48: ='MFG Calculation'!J62 -> 105170.7358 | O48: =ROUND(_xlfn.XLOOKUP("P"&$N$3,[5]Formula!$A:$A,[5]Formula!$Z:$Z),2)-H48 -> 0.004181177603
A50: Total Funding Allocated after protection Arrangements | K50: =K46+H48 -> 3759226.747 | O50: =_xlfn.XLOOKUP("P"&$N$3,[5]Formula!$A:$A,[5]Formula!$AA:$AA)-K50 -> 0
A52: 26/27 De-delegation | C52: See separate 'De-delegation' sheet | H52: ='De-delegation'!K25 -> -30026.65346 | O52: =ROUND(_xlfn.XLOOKUP("P"&$N$3,[5]Formula!$A:$A,[5]Formula!$AB:$AB),2)-H52 -> 0.003464554622
A54: 26/27 Indicative Risk Protection Arrangement Deduction | H54: =-IFERROR(_xlfn.XLOOKUP("P"&$N$3,'[13]LAMS Data'!$AI:$AI,'[13]LAMS Data'!$AC:$AC),0) -> 0
A56: 26/27 Business Rates Deduction | H56: =-H40 -> -73837.65
A58: Total Funding Allocated after MFG, De-delegation and RPA & NNDR Adjustments | K58: =K50+H52+H54+H56 -> 3655362.443 | O58: =ROUND(_xlfn.XLOOKUP("P"&$N$3,[5]Formula!$A:$A,[5]Formula!$AC:$AC),2)-K58+H56+H54 -> -0.003244069027
A60: Notes
A61: If you have chosen to join the DfE Risk Protection Arrangement, the value of your charge has been deducted from your budget share.
A62: This is based on Nursery pupils FTE in the 2025/26 DfE RPA calculation and Primary pupils number in the October 25 census at 2026/27 rate.
A63: The figure is for indicative purpose and is subjected to the final calculation from DfE.

Sheet Minimum Funding Level (hidden)
A1: ='Summary of Funding'!A1 -> Date Issued: 27th February 2026 | K1: ='Summary of Funding'!H1 -> Last amended: 25th February 2026
A2: COVENTRY CITY COUNCIL
A3: ='Summary of Funding'!A3:H3 -> 2026/27 Funding Allocations for Schools | N3: ='Summary of Funding'!N3 -> 2
A4: Calculation of Minimum Per Pupil (MPP) Funding Level
A6: =_xlfn.XLOOKUP("P"&$N$3,'[10]Minimum Funding Guarantee'!$A:$A,'[10]Minimum Funding Guarantee'!$C:$C) -> Aldermoor Farm Primary School | N6: Checks
G9: £ | J9: £
A10: NFF Minimum per pupil funding rate | G10: ='[5]Minimum Per Pupil'!$D$3 -> 5115 | N10: ='[5]Minimum Per Pupil'!$D$3-G10 -> 0
A12: October 2025 Pupil Numbers | G12: =_xlfn.XLOOKUP("P"&$N$3,'[5]Minimum Per Pupil'!$A:$A,'[5]Minimum Per Pupil'!$D:$D) -> 601 | N12: =_xlfn.XLOOKUP("P"&$N$3,'[5]Minimum Per Pupil'!$A:$A,'[5]Minimum Per Pupil'!$D:$D)-G12 -> 0
A14: Minimum Funding Level (MFL) | F14: [A] | J14: =G10*G12 -> 3074115 | N14: =_xlfn.XLOOKUP("P"&$N$3,'[5]Minimum Per Pupil'!$A:$A,'[5]Minimum Per Pupil'!$E:$E)-J14 -> 0
A17: Total Formula Factor Funding | G17: ='Budget Share Statement'!K42 -> 3654056.011 | N17: =_xlfn.XLOOKUP("P"&$N$3,'[5]Minimum Per Pupil'!$A:$A,'[5]Minimum Per Pupil'!$G:$G)-G17 -> 0
A19: Less: exempt premises factors
A20: 2026/27 NNDR | G20: =_xlfn.XLOOKUP("P"&$N$3,[5]Formula!$A:$A,[5]Formula!$K:$K) -> 73837.65 | H20: =INDEX([12]Formula!$K:$K,MATCH("P"&$N$3,[12]Formula!$A:$A,0))-A20 ->  | N20: =_xlfn.XLOOKUP("P"&$N$3,[5]Formula!$A:$A,[5]Formula!$K:$K)-G20 -> 0
A22: 2026/27 Split Site | G22: =_xlfn.XLOOKUP("P"&$N$3,[5]Formula!$A:$A,[5]Formula!$L:$L) -> 0 | H22: =INDEX([12]Formula!$K:$K,MATCH("P"&$N$3,[12]Formula!$A:$A,0))-A22 ->  | N22: =_xlfn.XLOOKUP("P"&$N$3,[5]Formula!$A:$A,[5]Formula!$L:$L)-G22 -> 0
A25: 2026/27 Funding for MFL comparison | F25: [B] | J25: =G17-SUM(G20:G22) -> 3580218.361 | N25: =_xlfn.XLOOKUP("P"&$N$3,'[5]Minimum Per Pupil'!$A:$A,'[5]Minimum Per Pupil'!$K:$K)-J25 -> 0
A28: MFL shortfall to be funded [B] - [A] | F28: = [B] - [A] | J28: =IF(J25<J14,J14-J25,0) -> 0 | N28: =_xlfn.XLOOKUP("P"&$N$3,'[5]Minimum Per Pupil'!$A:$A,'[5]Minimum Per Pupil'!$M:$M)-J28 -> 0

Sheet MFG Calculation (hidden)
A1: ='Summary of Funding'!A1 -> Date Issued: 27th February 2026 | K1: ='Summary of Funding'!H1 -> Last amended: 25th February 2026
A2: COVENTRY CITY COUNCIL
A3: ='Summary of Funding'!A3:H3 -> 2026/27 Funding Allocations for Schools | N3: ='Summary of Funding'!N3 -> 2
A4: Calculation of Minimum Funding Guarantee
A6: =_xlfn.XLOOKUP("P"&$N$3,[10]Formula!$A:$A,[10]Formula!$C:$C) -> Aldermoor Farm Primary School | N6: Checks
A9: Baseline | C9: =IF(N55>=0," ","DOES NOT BALANCE") ->  | G9: £ | J9: £
A11: Final Budget Share 2025/26 (Excluding Early Years) | J11: =_xlfn.XLOOKUP("P"&$N$3,'[5]Minimum Funding Guarantee'!$A:$A,'[5]Minimum Funding Guarantee'!$H:$H) -> 3774739.119
A13: Less:
A14: 2025/26 Rates Funding | G14: =_xlfn.XLOOKUP("P"&$N$3,'[5]Minimum Funding Guarantee'!$A:$A,'[5]Minimum Funding Guarantee'!$J:$J) -> 73837.65 | H14: =_xlfn.XLOOKUP("P"&$N$3,'[14]Minimum Funding Guarantee'!$A:$A,'[14]Minimum Funding Guarantee'!$H:$H) -> 3107365.482
A16: 2026/27 Lump Sum | G16: =_xlfn.XLOOKUP("P"&$N$3,'[5]Minimum Funding Guarantee'!$A:$A,'[5]Minimum Funding Guarantee'!$I:$I) -> 153237.504 | H16: =INDEX('[12]Minimum Funding Guarantee'!$H:$H,MATCH("P"&$N$3,'[12]Minimum Funding Guarantee'!$A:$A,0)) -> 2672266.057
A18: 2025/26 Split Site | G18: =_xlfn.XLOOKUP("P"&$N$3,'[5]Minimum Funding Guarantee'!$A:$A,'[5]Minimum Funding Guarantee'!$L:$L) -> 0 | H18: =INDEX('[12]Minimum Funding Guarantee'!$H:$H,MATCH("P"&$N$3,'[12]Minimum Funding Guarantee'!$A:$A,0)) -> 2672266.057 | J18: =-SUM(G14,G16,G18) -> -227075.154
A20: Add:
A21: 2025/26 Supplementary Grant | G21: =_xlfn.XLOOKUP("P"&$N$3,'[5]Minimum Funding Guarantee'!$A:$A,'[5]Minimum Funding Guarantee'!$M:$M) -> 113784.3583 | H21: =INDEX('[12]Minimum Funding Guarantee'!$H:$H,MATCH("P"&$N$3,'[12]Minimum Funding Guarantee'!$A:$A,0)) -> 2672266.057 | J21: =G21 -> 113784.3583
A23: Adjusted Budget Share 2025/26 | J23: =J11+J18+J21 -> 3661448.323 | N23: =_xlfn.XLOOKUP("P"&$N$3,'[5]Minimum Funding Guarantee'!$A:$A,'[5]Minimum Funding Guarantee'!$N:$N)-J23 -> 0
A26: Guaranteed Unit Funding Calculation | J26: £
A28: Adjusted Budget Share 2025/26 | G28: =J23 -> 3661448.323
A30: October 2024 Pupil Number | G30: =_xlfn.XLOOKUP("P"&$N$3,'[5]Minimum Funding Guarantee'!$A:$A,'[5]Minimum Funding Guarantee'!$D:$D) -> 623 | H30: =INDEX('[12]Minimum Funding Guarantee'!$H:$H,MATCH("P"&$N$3,'[12]Minimum Funding Guarantee'!$A:$A,0)) -> 2672266.057
A32: Adjusted Budget Share 2025/26 Per Pupil | J32: =G28/G30 -> 5877.124114 | N32: =_xlfn.XLOOKUP("P"&$N$3,'[5]Minimum Funding Guarantee'!$A:$A,'[5]Minimum Funding Guarantee'!$O:$O)-J32 -> 0
A34: Minimum Funding Guarantee Protection Level | G34: ='[5]Minimum Funding Guarantee'!$R$3-1 -> 0
A36: 2026/27 Guaranteed Unit Funding | J36: =J32*(1+G34) -> 5877.124114
A39: Guaranteed Funding Level Calculation
A41: 2026/27 Guaranteed Unit Funding | G41: =J36 -> 5877.124114
A43: October 2025 Pupil Number | G43: =_xlfn.XLOOKUP("P"&$N$3,'[5]Minimum Funding Guarantee'!$A:$A,'[5]Minimum Funding Guarantee'!$E:$E) -> 601 | H43: =INDEX('[12]Minimum Funding Guarantee'!$H:$H,MATCH("P"&$N$3,'[12]Minimum Funding Guarantee'!$A:$A,0)) -> 2672266.057
A45: 2026/27 Guaranteed Funding Level | J45: =G41*G43 -> 3532151.593
A47: Add:
A48: 2026/27 Rates | G48: =_xlfn.XLOOKUP("P"&$N$3,'[5]Minimum Funding Guarantee'!$A:$A,'[5]Minimum Funding Guarantee'!$Z:$Z) -> 73837.65 | H48: =INDEX('[12]Minimum Funding Guarantee'!$H:$H,MATCH("P"&$N$3,'[12]Minimum Funding Guarantee'!$A:$A,0)) -> 2672266.057
A50: 2026/27 Lump Sum | G50: =_xlfn.XLOOKUP("P"&$N$3,'[5]Minimum Funding Guarantee'!$A:$A,'[5]Minimum Funding Guarantee'!$Y:$Y) -> 153237.504 | H50: =INDEX('[12]Minimum Funding Guarantee'!$H:$H,MATCH("P"&$N$3,'[12]Minimum Funding Guarantee'!$A:$A,0)) -> 2672266.057
A52: 2026/27 Split Site | G52: =_xlfn.XLOOKUP("P"&$N$3,'[5]Minimum Funding Guarantee'!$A:$A,'[5]Minimum Funding Guarantee'!$AA:$AA) -> 0 | H52: =INDEX('[12]Minimum Funding Guarantee'!$H:$H,MATCH("P"&$N$3,'[12]Minimum Funding Guarantee'!$A:$A,0)) -> 2672266.057 | J52: =SUM(G48,G50) -> 227075.154
A55: 2026/27 Minimum Funding Guarantee | J55: =J45+J52 -> 3759226.747 | N55: =_xlfn.XLOOKUP("P"&$N$3,'[5]Minimum Funding Guarantee'!$A:$A,'[5]Minimum Funding Guarantee'!$Q:$Q)-J55 -> 0
A58: 2026/27 Minimum Funding Guarantee | G58: =J45+J52 -> 3759226.747
A60: 2026/27 Total Formula Funding allocated pre-MFG | G60: ='Budget Share Statement'!K46 -> 3654056.011
A62: 2026/27 MFG Protection (additional funding/top-slice) | J62: =_xlfn.XLOOKUP("P"&$N$3,'[5]Minimum Funding Guarantee'!$A:$A,'[5]Minimum Funding Guarantee'!$V:$V) -> 105170.7358 | N62: =_xlfn.XLOOKUP("P"&$N$3,'[5]Minimum Funding Guarantee'!$A:$A,'[5]Minimum Funding Guarantee'!$V:$V)-J62 -> 0
A64: Note:
A65: The Minimum Funding Guarantee is compared with your Budget Share before 2025/26 de-delegated budgets are removed.

Sheet De-delegation (hidden)
A1: ='Summary of Funding'!A1 -> Date Issued: 27th February 2026 | K1: ='Summary of Funding'!H1 -> Last amended: 25th February 2026
A2: COVENTRY CITY COUNCIL
A3: ='Summary of Funding'!A3:H3 -> 2026/27 Funding Allocations for Schools | N3: ='Summary of Funding'!N3 -> 2
A4: ="De-Delegation Detail" -> De-Delegation Detail
A6: =_xlfn.XLOOKUP("P"&$N$3,[10]Formula!$A:$A,[10]Formula!$C:$C) -> Aldermoor Farm Primary School | O6: Checks
A10: Factors | C10: Factor Measurement | G10: Number of Units | I10: Funding Per Unit | K10: Funding Allocated
I11: £ | K11: £
A12: Basic Entitlement
A13: Funding
A14: Maternity Cover | C14: Pupil Number: (Oct-25 Census) | G14: =_xlfn.XLOOKUP("P"&$N$3,[5]Data!$A:$A,[5]Data!$D:$D) -> 601 | I14: =-'[5]New Del & De-Del'!$G$9 -> -33.02218303 | K14: =G14*I14 -> -19846.332 | O14: =ROUND(_xlfn.XLOOKUP("P"&$N$3,'[5]New Del & De-Del'!$A:$A,'[5]New Del & De-Del'!$K:$K)+K14,0) -> 0
A15: Trade Union Facility | C15: Pupil Number: (Oct-25 Census) | G15: =_xlfn.XLOOKUP("P"&$N$3,[5]Data!$A:$A,[5]Data!$D:$D) -> 601 | I15: =-'[5]New Del & De-Del'!$G$10 -> -4 | K15: =G15*I15 -> -2404 | O15: =ROUND(_xlfn.XLOOKUP("P"&$N$3,'[5]New Del & De-Del'!$A:$A,'[5]New Del & De-Del'!$L:$L)+K15,0) -> 0
K17: =SUM(K14:K15) -> -22250.332 | O17: =ROUND(_xlfn.XLOOKUP("P"&$N$3,'[5]New Del & De-Del'!$A:$A,'[5]New Del & De-Del'!$D:$D)+K17,0) -> 0
A18: Deprivation Funding
A19: Free School Meal Eligibility | C19: Free School Meals: (Oct-25 FSM Eligibility) | G19: =_xlfn.XLOOKUP("P"&$N$3,[5]Data!$A:$A,[5]Data!$T:$T) -> 189 | I19: =-'[5]New Del & De-Del'!$G$7 -> -2.628845424 | K19: =G19*I19 -> -496.8517852 | O19: =ROUND(_xlfn.XLOOKUP("P"&$N$3,'[5]New Del & De-Del'!$A:$A,'[5]New Del & De-Del'!$E:$E)+K19,0) -> 0
A21: English as an Additional
A22: Language Funding
A23: EMAS: New Arrivals Grant | C23: EAL3: EAL in child's 1st 3 years of compulsory education | G23: =_xlfn.XLOOKUP("P"&$N$3,[5]Data!$A:$A,[5]Data!$AD:$AD) -> 190.8117871 | I23: =-'[5]New Del & De-Del'!$G$12 -> -38.15 | K23: =G23*I23 -> -7279.469677 | O23: =ROUND(_xlfn.XLOOKUP("P"&$N$3,'[5]New Del & De-Del'!$A:$A,'[5]New Del & De-Del'!$F:$F)+K23,0) -> 0
A25: Total De-Delegation | K25: =K17+K19+K23 -> -30026.65346 | O25: =ROUND(_xlfn.XLOOKUP("P"&$N$3,'[5]New Del & De-Del'!$A:$A,'[5]New Del & De-Del'!$H:$H)+K25,0) -> 0

Sheet EYSFF statement (hidden)
A1: ='Summary of Funding'!A1 -> Date Issued: 27th February 2026 | K1: ='Summary of Funding'!H1 -> Last amended: 25th February 2026
A2: COVENTRY CITY COUNCIL
A3: ='Summary of Funding'!A3:H3 -> 2026/27 Funding Allocations for Schools | N3: ='Summary of Funding'!N3 -> 2
A4: INDICATIVE Early Years Funding Statement
A6: =_xlfn.XLOOKUP("P"&$N$3,[10]Formula!$A:$A,[10]Formula!$C:$C) -> Aldermoor Farm Primary School | N6: Checks
A9: School Data | E9: Early Years Rates
E10: Free Entitlement | G10: Extended Entitlement
A11: January 2024 Headcount
A12: IDACI based on January 2025 census | E12: =_xlfn.IFNA(_xlfn.XLOOKUP("P"&$N$3,[15]Sheet1!$A:$A,[15]Sheet1!$D:$D),0) -> 0.2448222222 | G12: =_xlfn.IFNA(_xlfn.XLOOKUP("P"&$N$3,[15]Sheet1!$A:$A,[15]Sheet1!$D:$D),0) -> 0.2448222222
A13: Universal Base Rate | E13: 5.56 | G13: 5.56
A14: Universal Deprivation Rate | E14: 1.67 | G14: 1.67
E17: Summer Term 2026 | G17: Autumn Term 2026 | I17: Spring Term 2027 | K17: Whole Financial Year
E18: (12 Weeks) | G18: (15 Weeks) | I18: (11 Weeks) | K18: (38 Weeks)
E19: (Per May 25 census) | G19: (Per Oct 25 census) | I19: (Per Jan 25 census)
A20: Formula Factors | E20: To be updated | G20: To be updated | I20: To be updated
A21: Free Entitlement Headcount | E21: =_xlfn.IFNA(_xlfn.XLOOKUP("P"&$N$3,[15]Sheet1!$A:$A,[15]Sheet1!$H:$H),0) -> 44 | G21: =_xlfn.IFNA(_xlfn.XLOOKUP("P"&$N$3,[16]Sheet1!$A:$A,[16]Sheet1!$O:$O),0) -> 44 | I21: =_xlfn.IFNA(_xlfn.XLOOKUP("P"&$N$3,[17]Sheet1!$A:$A,[17]Sheet1!$W:$W),0) -> 45
A22: Free Entitlement Hours Provided | E22: =_xlfn.IFNA(_xlfn.XLOOKUP("P"&$N$3,[15]Sheet1!$A:$A,[15]Sheet1!$G:$G),0) -> 7920 | G22: =_xlfn.IFNA(_xlfn.XLOOKUP("P"&$N$3,[16]Sheet1!$A:$A,[16]Sheet1!$N:$N),0) -> 9900 | I22: =_xlfn.IFNA(_xlfn.XLOOKUP("P"&$N$3,[17]Sheet1!$A:$A,[17]Sheet1!$V:$V),0)/12*11 -> 7425
A23: Extended Entitlement Headcount | E23: =_xlfn.IFNA(_xlfn.XLOOKUP("P"&$N$3,[15]Sheet1!$A:$A,[15]Sheet1!$J:$J),0) -> 7 | G23: =_xlfn.IFNA(_xlfn.XLOOKUP("P"&$N$3,[16]Sheet1!$A:$A,[16]Sheet1!$Q:$Q),0) -> 0 | I23: =_xlfn.IFNA(_xlfn.XLOOKUP("P"&$N$3,[17]Sheet1!$A:$A,[17]Sheet1!$Y:$Y),0) -> 7
A24: Extended Entitlement Hours Provided | E24: =_xlfn.IFNA(_xlfn.XLOOKUP("P"&$N$3,[15]Sheet1!$A:$A,[15]Sheet1!$I:$I),0) -> 1260 | G24: =_xlfn.IFNA(_xlfn.XLOOKUP("P"&$N$3,[16]Sheet1!$A:$A,[16]Sheet1!$P:$P),0) -> 0 | I24: =_xlfn.IFNA(_xlfn.XLOOKUP("P"&$N$3,[17]Sheet1!$A:$A,[17]Sheet1!$X:$X),0)/12*11 -> 1155
A26: Base Rate Funding | E26: =IFERROR((E22+E24)*$E13,0) -> 51040.8 | G26: =IFERROR((G22+G24)*$E13,0) -> 55044 | I26: =IFERROR((I22+I24)*$E13,0) -> 47704.8
A28: Deprivation Funding | E28: =IFERROR((E21+E23)*$E$14*15*12*$E$12,0) -> 3753.27156 | G28: =IFERROR((G21+G23)*$E$14*15*15*$E$12,0) -> 4047.6458 | I28: =IFERROR((I21+I23)*$E$14*15*11*$E$12,0) -> 3507.959693
A30: Total 2026/27 Funding Under EYSFF (£) | E30: =E28+E26 -> 54794.07156 | G30: =G28+G26 -> 59091.6458 | I30: =I28+I26 -> 51212.75969 | K30: =E30+G30+I30 -> 165098.4771
A33: Note:
A34: This Early Years budget has been estimated based on full participation at the 25/26 census levels for Sum-26 and Aut-26,
A35: and 24/25 census levels for Spr-27 using the 26/27 hourly rates.
A37: At this point in time, you will have the best knowledge of relevant pupil numbers and as such are in the best position to estimate
A38: what the EYSFF funding position will be. Work with your SFO's to make an estimate and work through the financial implications.
A40: Your actual Early Years funding will be updated through the year to reflect the actual provision delivered as recorded on the
A41: Summer-26, Autumn-26 and Spring-27 school census information. As in previous years, this means that your Early Years
A42: funding will not be finalised until after the Spring 2027 census has been finalised.

Sheet Further Delegation Info (hidden)
A1: ='Summary of Funding'!A1 -> Date Issued: 27th February 2026 | H1: ='Summary of Funding'!H1 -> Last amended: 25th February 2026 | N1: ID
A2: COVENTRY CITY COUNCIL
A3: ='Summary of Funding'!A3:H3 -> 2026/27 Funding Allocations for Schools
A4: Further Delegation Information
A6: All Schools
A9: The 2013/14 School Funding Reform required local authorities to delegate some centrally retained DSG budgets to schools; those budgets are listed below in the columns headed "Delegated in 2013/14" for your information.
A11: For 2026/27 maintained schools have opted to return some of this funding to the Local Authority to continue central provision of the relevant services. The delegated budget available to each maintained school therefore excludes these returned budgets. The relevant amounts are listed below in the columns headed "De-delegation in 2026/27" for your reference.
A17: S251 line | B17: Further Delegation Areas | C17: Delegated in 2013/14 | F17: De-delegation in 2026/27
C18: Primary (all) £ | D18: Secondary (all) £ | E18: Total (all) £ | F18: Primary Maintained £ | G18: Secondary Maintained £ | H18: Total Maintained £
A19: 1.1.4 | B19: Free school meal eligibility | C19: 20899.32112 | D19: 11151.53862 | E19: 32050.85975 | F19: ='[5]New Del & De-Del'!$I$7 -> 12381.86195 | G19: 0 | H19: =SUM(F19:G19) -> 12381.86195
A20: 1.1.7 | B20: Licences/subscriptions | C20: 56639.72318 | D20: 35735.64289 | E20: 92375.36607 | F20: =+'[5]New Del & De-Del'!$I$8 -> 0 | G20: 0 | H20: =SUM(F20:G20) -> 0
A21: 1.1.8 | B21: Maternity/special staffing suspension | C21: 356766.1768 | D21: 225094.1208 | E21: 581860.2976 | F21: ='[5]New Del & De-Del'!$I$9 -> 607509.1012 | G21: 0 | H21: 607509.1012
A22: 1.1.9 | B22: Trade Union facility | C22: 195944.4399 | D22: 123627.026 | E22: 319571.4659 | F22: ='[5]New Del & De-Del'!$I$10 -> 73588 | G22: 0 | H22: 73588
A23: 1.1.10 | B23: School Improvement | C23: 0 | D23: 0 | E23: 0 | F23: ='[5]New Del & De-Del'!$I$11 -> 0 | G23: 0 | H23: 0
A24: 1.1.3 | B24: Ethnic Minority Acheivement Service (EMAS) | C24: 991053 | D24: 284303 | E24: 1275356 | F24: ='[5]New Del & De-Del'!$I$12 -> 158738.9015 | G24: 0 | H24: 158738.9015
A25: 1.1.2 | B25: Behaviour support services | C25: 310504 | D25: 256781 | E25: 567285 | F25: =+'[5]New Del & De-Del'!$I$13 -> 0 | G25: =-'[18]New Del & De-Del'!$J13 -> 0 | H25: 0
B26: Totals | C26: =SUM(C19:C25) -> 1931806.661 | D26: 936692.3283 | E26: 2868498.989 | F26: 852217.8647 | G26: 0 | H26: 852217.8647 | J26: =H26-'[5]New Del & De-Del'!$K$14 -> 0

Sheet ISB (hidden)
A1: ='Summary of Funding'!A1 -> Date Issued: 27th February 2026 | F1: ='Summary of Funding'!H1 -> Last amended: 25th February 2026 | J1: ID
A2: COVENTRY CITY COUNCIL
A3: 2026/27 Funding Allocations for Schools
A5: Individual Schools Budget (ISB) 2026/27
A8: This page shows how the Individual Schools Budget (ISB), which is the total of all schools block delegated budget shares, has changed from the previous year. It shows the financial effect, in overall budget terms, of policy and funding decisions in terms of the increased or decreased level of resources for schools. The final ISB figure represents the total level of resources which go into the Fair Funding Formula to produce schools budget shares.
C14: Schools | D14: Schools
C15: Block | D15: Block
C16: (Primary) | D16: (Secondary)
C17: £ | D17: £
B19: FINAL ISB 2024/25 | C19: 176665979.4 | D19: 166103758.7 | L19: =[19]Schools_block_and_CSSB!$J$5-[19]Schools_block_and_CSSB!$I$5 -> 315280287
B21: Resource Adjustments
B22: De-delegation adjustments | C22: =-([20]Formula!$AB$93-[21]Formula!$AB$93) -> -41488.03025 | L22: =C22 -> -41488.03025
B23: NFF - Additional resource | C23: =[22]Schools_block_and_CSSB!$C$190 -> 3283272.901 | D23: =[22]Schools_block_and_CSSB!$D$190+[22]Schools_block_and_CSSB!$E$185 -> 4246306.624 | L23: =[23]Schools_block_and_CSSB!$J$7-[19]Schools_block_and_CSSB!$J$8-L24+[24]Formula!$AB$93 -> 1897090.229
B24: NFF - SBSG & NICs funding rolled into DSG | C24: =[22]Schools_block_and_CSSB!$C$189+252639 -> 5906647.599 | D24: =[22]Schools_block_and_CSSB!$D$189-250029 -> 4215000.021 | L24: ='[24]Minimum Funding Guarantee'!$M$125 -> 22224475.1
B25: Pupil number changes funding | C25: =[22]Schools_block_and_CSSB!$C$183 -> -3217771.05 | D25: =[22]Schools_block_and_CSSB!$D$183 -> 574774.41 | L25: =C25+D25-204 -> -2643200.64
B27: Education Service PPR
B29: Pupil data changes | C29: ='[25]Data Changes Impact'!$B$10 -> 477622.77 | D29: ='[25]Data Changes Impact'!$C$10 -> 616055.59 | L29: =C29+D29 -> 1093678.36
B30: Capping and Scaling | C30: =SUM([20]Formula!$Z$7,[20]Formula!$Z$10:$Z$20,[20]Formula!$Z$22:$Z$23,[20]Formula!$Z$25:$Z$29,[20]Formula!$Z$31:$Z$38,[20]Formula!$Z$40:$Z$43,[20]Formula!$Z$45:$Z$50,[20]Formula!$Z$53:$Z$55,[20]Formula!$Z$57:$Z$63,[20]Formula!$Z$65,[20]Formula!$Z$68:$Z$74,[20]Formula!$Z$76:$Z$81,[20]Formula!$Z$83:$Z$92) -> -450413.0135 | D30: =SUM([20]Formula!$Z$103:$Z$105,[20]Formula!$Z$107:$Z$122,[20]Formula!$Z$124) -> -562899.6251 | L30: =C30+D30 -> -1013312.639
B32: FINAL ISB 2025/26 | C32: =SUM(C19:C31) -> 182623850.6 | D32: =SUM(D19:D31) -> 175192995.8 | L32: =SUM(L19:L30) -> 336797529.4
A36: If you have any queries about any of this information, please contact Paul Hammond 7697 2635

Sheet LogIn (hidden)
A1: User Name | B1: Password | C1: ID
A2: Alderman's Green | B2: NcR96Na | C2: 1
A3: Aldermoor Farm | B3: 8UBcN4 | C3: 2
A4: Allesley | B4: uE98HX | C4: 3
A5: Allesley Hall | B5: c2r66H | C5: 4
A6: Broad Heath | B6: 94ctnJ | C6: 5
A7: Cannon Park | B7: 4V8gK4 | C7: 6
A8: Charter | B8: bHkpG8a | C8: 7
A9: Clifford Bridge | B9: VksmRa1a | C9: 8
A10: Coundon Primary | B10: 4Y428c | C10: 9
A11: Courthouse Green | B11: BE75nX1a | C11: 10
A12: Earlsdon | B12: ZkcST6 | C12: 11
A13: Eastern Green Junior | B13: 24x4Xc | C13: 12
A14: Edgewick | B14: R3kRR4 | C14: 13
A15: Ernesford Grange | B15: GKD5A2 | C15: 14
A16: Finham | B16: 9TWJzm1a | C16: 15
A17: Frederick Bird | B17: agw9kda | C17: 16
A18: Gosford Park | B18: cuxXcd | C18: 17
A19: Grange Farm | B19: V2DGxe | C19: 18
A20: Grangehurst | B20: aFbkW3 | C20: 19
A21: Hearsall | B21: 3JcVC31a | C21: 20
A22: Henley Green | B22: J5cwAZ | C22: 21
A23: Hill Farm Academy | B23: 8S7cc81a | C23: 22
A24: Holbrook | B24: GkEHwt | C24: 23
A25: Hollyfast | B25: D4N45K | C25: 24
A26: Howes | B26: ccAeb5 | C26: 25
A27: John Gulson | B27: 26cA4V | C27: 26
A28: John Shelton | B28: B8cds4 | C28: 27
A29: Joseph Cash | B29: 33GsH6 | C29: 28
A30: Keresley Grange | B30: RPPyVD1a | C30: 29
A31: Limbrick Wood | B31: uk7NEQa | C31: 30
A32: Little Heath | B32: Av3kpba | C32: 31
A33: Longford Park | B33: 79byb7 | C33: 32
A34: Manor Park | B34: MkRSqT | C34: 33
A35: Moathouse | B35: 7URcPj | C35: 34
A36: Moseley | B36: FHQ99Q | C36: 35
A37: Mount Nod | B37: t9C84k | C37: 36
A38: Parkgate | B38: vk7KgW1a | C38: 37
A39: Parkhill | B39: CDXegf | C39: 38
A40: Pearl Hyde | B40: j3MNSS1a | C40: 39
A41: Potters Green | B41: YEy8sya | C41: 40
A42: Radford Academy | B42: p43M6w1a | C42: 41
A43: Ravensdale | B43: APVTV2 | C43: 42
A44: Richard Lee | B44: hAt28j1a | C44: 43
A45: Sir Frank Whittle | B45: GX72Yc1a | C45: 44
A46: St. Christopher | B46: 47967b | C46: 45
A47: Southfields | B47: 5Wbz28 | C47: 46
A48: Sowe Valley | B48: CmbnbG | C48: 47
A49: Spon Gate | B49: kyX882 | C49: 48
A50: Stanton Bridge | B50: 334HJR1a | C50: 49
A51: Stivichall | B51: 7Qc6H3 | C51: 50
A52: Stoke | B52: 6R28Wf | C52: 51
A53: Stoke Heath | B53: abbM4V | C53: 52
A54: Templars | B54: X23zbq | C54: 53
A55: Whitley Abbey | B55: 64t3u4 | C55: 54
A56: Whitmore Park | B56: bY76ab | C56: 55
A57: Whoberley Hall | B57: Q6kTTB | C57: 56
A58: Willenhall Community | B58: rHAW8H | C58: 57
A59: Wyken Croft | B59: U4pEJ3 | C59: 58
A60: All Saints' CE | B60: BgJH5H | C60: 59
A61: All Souls' RC | B61: 5dQG7T | C61: 60
A62: Christ the King RC Primary | B62: AbcSYP1a | C62: 61
A63: Corpus Christi RC | B63: E446Hn1a | C63: 62
A64: St Laurance's CE Academy | B64: j877qE1a | C64: 63
A65: Good Shepherd RC | B65: ZX6bRM1a | C65: 64
A66: Holy Family RC | B66: y8FdX4 | C66: 65
A67: Leigh CE | B67: y5ZNQz1a | C67: 66
A68: Our Lady of the Assumption RC | B68: 6f89MQ | C68: 67
A69: Sacred Heart RC | B69: 4n6E5w1a | C69: 68
A70: St. Andrew's CE Infant | B70: zS5569 | C70: 69
A71: St. Anne's RC | B71: H2YK64 | C71: 70
A72: St. Augustine's RC | B72: cAb7FY1a | C72: 71
A73: St. Bartholomew's Academy | B73: CPKbKb1a | C73: 72
A74: St. Elizabeth's RC | B74: 2s47541a | C74: 73
A75: St. Gregory's RC | B75: YHzVS61a | C75: 74
A76: St. John Fisher RC | B76: G97Ncj1a | C76: 75
A77: St. John Vianney RC | B77: RkP3wb1a | C77: 76
A78: St. John's CE | B78: WV25551a | C78: 77
A79: St. Mary's & St. Benedict's RC | B79: hNW6cM | C79: 78
A80: St. Osburg's RC | B80: D7UP4r | C80: 79
A81: St. Patrick's RC | B81: 6bP7aV1a | C81: 80
A82: Sts. Peter & Paul RC | B82: K43Jb31a | C82: 81
A83: St. Thomas More RC | B83: Kc3rR81a | C83: 82
A84: Stretton CE Academy | B84: BMJT831a | C84: 83
A85: Walsgrave CE | B85: DM93SH1a | C85: 84

Sheet LoginPage

Sheet Funding Floor (hidden)
A1: ='Summary of Funding'!A1 -> Date Issued: 27th February 2026 | L1: ='Summary of Funding'!H1 -> Last amended: 25th February 2026
A2: COVENTRY CITY COUNCIL - PEOPLE'S DIRECTORATE
A3: ='Summary of Funding'!A3:H3 -> 2026/27 Funding Allocations for Schools | N3: ='Summary of Funding'!N3 -> 2
A4: Calculation of Funding Floor
A6: =VLOOKUP(("P"&N3),[26]Formula!$A$10:$X$96,3,FALSE) -> Aldermoor Farm | N6: Checks
I9: £ | L9: £
A11: 2020/21 Total funding allocated after MFL | L11: =VLOOKUP(("P"&$N$3),'[27]Funding Floor'!$A$3:$U$90,6,FALSE) -> 2231473.886 | N11: =VLOOKUP(("P"&$N$3),'[27]Funding Floor'!$A$3:$U$90,6,FALSE)-L11 -> 0
A13: Less:
A14: 2020/21 Mobility | I14: =VLOOKUP(("P"&$N$3),'[27]Funding Floor'!$A$3:$U$90,7,FALSE) -> 5562.387473 | J14: =VLOOKUP(("P"&$N$3),'[27]Funding Floor'!$A$3:$U$90,6,FALSE) -> 2231473.886 | N14: =VLOOKUP(("P"&$N$3),'[27]Funding Floor'!$A$3:$U$90,7,FALSE)-I14 -> 0
A16: 2020/21 Lump Sum | I16: =VLOOKUP(("P"&$N$3),'[27]Funding Floor'!$A$3:$U$90,8,FALSE) -> 110364.1 | J16: =VLOOKUP(("P"&$N$3),'[27]Funding Floor'!$A$3:$U$90,6,FALSE) -> 2231473.886 | N16: =VLOOKUP(("P"&$N$3),'[27]Funding Floor'!$A$3:$U$90,8,FALSE)-I16 -> 0
A18: 2020/21 Split Site | I18: =VLOOKUP(("P"&$N$3),'[27]Funding Floor'!$A$3:$U$90,9,FALSE) -> 0 | J18: =VLOOKUP(("P"&$N$3),'[27]Funding Floor'!$A$3:$U$90,6,FALSE) -> 2231473.886 | N18: =VLOOKUP(("P"&$N$3),'[27]Funding Floor'!$A$3:$U$90,9,FALSE)-I18 -> 0
A20: 2020/21 Rates Funding | I20: =VLOOKUP(("P"&$N$3),'[27]Funding Floor'!$A$3:$U$90,11,FALSE) -> 56082.21 | J20: =VLOOKUP(("P"&$N$3),'[27]Funding Floor'!$A$3:$U$90,6,FALSE) -> 2231473.886 | N20: =VLOOKUP(("P"&$N$3),'[27]Funding Floor'!$A$3:$U$90,11,FALSE)-I20 -> 0
A22: 2020/21 Education Improvement Commissioning Pot | I22: =VLOOKUP(("P"&$N$3),'[27]Funding Floor'!$A$3:$U$90,12,FALSE) -> 4491.595207 | J22: =VLOOKUP(("P"&$N$3),'[27]Funding Floor'!$A$3:$U$90,6,FALSE) -> 2231473.886 | L22: =-SUM(I14:I22) -> -176500.2927 | N22: =VLOOKUP(("P"&$N$3),'[27]Funding Floor'!$A$3:$U$90,12,FALSE)-I22 -> 0
A25: 2020/21 Pupil Led Funding | L25: =L11+L22 -> 2054973.594 | N25: =VLOOKUP(("P"&$N$3),'[27]Funding Floor'!$A$3:$U$90,15,FALSE)-L25 -> 0
A27: October 2019 Pupil Number | H27: [A] | I27: =VLOOKUP(("P"&$N$3),'[27]Funding Floor'!$A$3:$U$90,17,FALSE) -> 497 | J27: =VLOOKUP(("P"&$N$3),'[27]Funding Floor'!$A$3:$U$90,6,FALSE) -> 2231473.886 | N27: =VLOOKUP(("P"&$N$3),'[27]Funding Floor'!$A$3:$U$90,17,FALSE)-I27 -> 0
A29: 2020/21 Pupil Led Funding (per pupil) | H29: [B] | L29: =L25/I27 -> 4134.755721 | N29: =VLOOKUP(("P"&$N$3),'[27]Funding Floor'!$A$3:$U$90,18,FALSE)-L29 -> 0
A32: 2017/18 calculated Funding Floor (FF) per Pupil | I32: =VLOOKUP(("P"&$N$3),'[27]Funding Floor'!$A$3:$U$90,4,FALSE) -> 4529.9634 | J32: =VLOOKUP(("P"&$N$3),'[27]Funding Floor'!$A$3:$U$90,6,FALSE) -> 2231473.886 | N32: =VLOOKUP(("P"&$N$3),'[27]Funding Floor'!$A$3:$U$90,4,FALSE)-I32 -> 0
A34: 2020/21 Funding Floor protection level | I34: 0.01
A36: Funding Floor per pupil | H36: [C] | L36: =I32*(1+I34) -> 4575.263034
A38: Shortfall to Funding Floor per pupil | H38: [D] = [C] - [B] | L38: =IF(L29<L36,L36-L29,0) -> 440.5073125
A42: 2020/21 Funding Floor Adjustment | H42: = [A] x [D] | L42: =L38*I27 -> 218932.1343 | N42: =VLOOKUP(("P"&$N$3),'[27]Funding Floor'!$A$3:$U$90,21,FALSE)-L42 -> 0
